[Event "Campeonato de Aragón Individual Absoluto 2022"]
[Site "Zaragoza, Spain"]
[Date "2022.08.30"]
[Round "4.1"]
[White "Garza Marco, Sergio"]
[Black "Antonano Fernandez-Quincoces, Avelino"]
[Result "1-0"]
[TimeControl "90 min + 30 sg"]
[WhiteElo "2408"]
[BlackElo "1981"]

1. d4 {[%clk 01:30:59]} Nf6 {[%clk 01:30:47]} {[%emt 00:00:13]} 2. c4 {[%clk
01:31:14]} {[%emt 00:00:15]} e6 {[%clk 01:31:08]} {[%emt 00:00:09]} 3. Nc3
{[%clk 01:31:10]} {[%emt 00:00:34]} Bb4 {[%clk 01:31:21]} {[%emt 00:00:16]} 4.
e3 {[%clk 01:31:14]} {[%emt 00:00:27]} c5 {[%clk 01:31:41]} {[%emt 00:00:10]} 5.
Nf3 {[%clk 01:30:50]} {[%emt 00:00:54]} Bxc3+ {[%clk 01:27:14]} {[%emt
00:04:56]} 6. bxc3 {[%clk 01:31:16]} {[%emt 00:00:05]} d6 {[%clk 01:27:33]}
{[%emt 00:00:11]} 7. Bd3 {[%clk 01:31:21]} {[%emt 00:00:26]} Nc6 {[%clk
01:27:07]} {[%emt 00:00:55]} 8. Nd2 {[%clk 01:30:54]} {[%emt 00:00:57]} e5
{[%clk 01:24:40]} {[%emt 00:02:57]} 9. O-O {[%clk 01:27:12]} {[%emt 00:04:13]}
O-O {[%clk 01:22:43]} {[%emt 00:02:26]} 10. d5 {[%clk 01:20:16]} {[%emt
00:07:28]} Ne7 {[%clk 01:22:47]} {[%emt 00:00:24]} 11. Rb1 {[%clk 01:19:58]}
{[%emt 00:00:50]} b6 {[%clk 01:20:30]} {[%emt 00:02:46]} 12. f3 {[%clk
01:17:44]} {[%emt 00:02:44]} Bf5 {[%emt 00:02:25]} 13. e4 {[%clk 01:18:03]}
{[%emt 00:00:08]} Bd7 {[%clk 01:18:36]} {[%emt 00:00:30]} 14. Re1 {[%clk
01:14:23]} {[%emt 00:04:12]} Nh5 {[%clk 01:07:28]} {[%emt 00:11:36]} 15. g3
{[%clk 01:10:12]} {[%emt 00:04:43]} g6 {[%clk 00:56:17]} {[%emt 00:11:39]} 16.
Nf1 {[%clk 01:09:48]} {[%emt 00:00:56]} f6 {[%clk 00:55:36]} {[%emt 00:01:10]}
17. Bh6 {[%clk 01:09:23]} {[%emt 00:00:56]} Rf7 {[%clk 00:55:24]} {[%emt
00:00:41]} 18. Rb2 {[%clk 01:04:32]} {[%emt 00:05:22]} Ng7 {[%clk 00:55:16]}
{[%emt 00:00:36]} 19. f4 {[%clk 00:57:08]} {[%emt 00:07:55]} Kh8 {[%clk
00:55:16]} {[%emt 00:00:28]} 20. fxe5 {[%clk 00:56:49]} {[%emt 00:00:51]} fxe5
{[%clk 00:55:32]} {[%emt 00:00:13]} 21. Bg5 {[%clk 00:51:34]} {[%emt 00:05:46]}
Qf8 {[%clk 00:52:05]} {[%emt 00:03:56]} 22. Ne3 {[%clk 00:50:40]} {[%emt
00:01:26]} Ng8 {[%clk 00:49:24]} {[%emt 00:03:09]} 23. Ng4 {[%clk 00:46:15]}
{[%emt 00:04:56]} Bxg4 {[%clk 00:48:52]} {[%emt 00:01:01]} 24. Qxg4 {[%clk
00:46:31]} {[%emt 00:00:15]} Qc8 {[%clk 00:32:36]} {[%emt 00:16:44]} 25. Qxc8
{[%clk 00:38:09]} {[%emt 00:08:54]} Rxc8 {[%emt 00:00:06]} 26. a4 {[%clk
00:38:25]} {[%emt 00:00:12]} h6 {[%clk 00:32:51]} {[%emt 00:00:39]} 27. Be3
{[%clk 00:38:28]} {[%emt 00:00:28]} Kh7 {[%clk 00:30:58]} {[%emt 00:02:23]} 28.
Kg2 {[%clk 00:38:54]} {[%emt 00:00:05]} Rcf8 {[%clk 00:20:20]} {[%emt
00:11:06]} 29. a5 {[%clk 00:38:00]} {[%emt 00:01:27]} bxa5 {[%clk 00:17:12]}
{[%emt 00:03:38]} 30. Ra2 {[%clk 00:27:43]} {[%emt 00:10:47]} Ne7 {[%clk
00:14:02]} {[%emt 00:03:38]} 31. Be2 {[%clk 00:27:01]} {[%emt 00:01:13]} Nc8
{[%clk 00:13:13]} {[%emt 00:01:18]} 32. Rxa5 {[%clk 00:27:07]} {[%emt
00:00:26]} h5 {[%clk 00:12:27]} {[%emt 00:01:15]} 33. Rb1 {[%clk 00:25:35]}
{[%emt 00:02:03]} Nb6 {[%clk 00:12:02]} {[%emt 00:00:54]} 34. Rba1 {[%clk
00:25:33]} {[%emt 00:00:33]} Nc8 {[%clk 00:12:13]} {[%emt 00:00:18]} 35. g4
{[%clk 00:25:42]} {[%emt 00:00:22]} Rb7 {[%clk 00:12:30]} {[%emt 00:00:13]} 36.
Rb5 {[%clk 00:25:46]} {[%emt 00:00:27]} Rff7 {[%clk 00:06:56]} {[%emt
00:06:03]} 37. h3 {[%clk 00:24:50]} {[%emt 00:01:28]} Nb6 {[%clk 00:07:21]}
{[%emt 00:00:04]} 38. Kg3 {[%clk 00:25:01]} {[%emt 00:00:18]} Rb8 {[%clk
00:05:40]} {[%emt 00:02:11]} 39. Kh4 {[%clk 00:23:55]} {[%emt 00:01:36]} Rh8
{[%clk 00:04:59]} {[%emt 00:01:11]} 40. Rba5 {[%clk 00:23:51]} {[%emt
00:00:35]} Nc8 {[%clk 00:04:56]} {[%emt 00:00:31]} 41. Kg3 {[%clk 00:24:20]}
{[%emt 00:00:02]} Rhf8 {[%clk 00:05:03]} {[%emt 00:00:22]} 42. Ra6 {[%clk
00:24:06]} {[%emt 00:00:45]} Rb7 {[%clk 00:05:14]} {[%emt 00:00:19]} 43. R6a2
{[%clk 00:21:27]} {[%emt 00:03:09]} Rff7 {[%clk 00:05:04]} {[%emt 00:00:38]} 44.
Kh4 {[%clk 00:16:50]} {[%emt 00:05:08]} Nb6 {[%clk 00:05:23]} {[%emt 00:00:10]}
45. Rb2 {[%clk 00:16:17]} {[%emt 00:01:04]} Nc8 {[%clk 00:05:34]} {[%emt
00:00:19]} 46. Rb5 {[%clk 00:16:46]} {[%emt 00:00:02]} Nb6 {[%clk 00:05:20]}
{[%emt 00:00:43]} 47. Ra6 {[%clk 00:13:47]} {[%emt 00:03:29]} Rbd7 {[%clk
00:05:23]} {[%emt 00:00:26]} 48. Kg3 {[%clk 00:13:56]} {[%emt 00:00:22]} Rf8
{[%clk 00:05:09]} {[%emt 00:00:42]} 49. Rba5 {[%clk 00:14:07]} {[%emt
00:00:20]} Nc8 {[%clk 00:04:47]} {[%emt 00:00:50]} 50. Rc6 {[%clk 00:14:33]}
{[%emt 00:00:06]} Ne7 {[%clk 00:03:10]} {[%emt 00:02:06]} 51. Rca6 {[%clk
00:14:57]} {[%emt 00:00:06]} Nc8 {[%clk 00:03:31]} {[%emt 00:00:09]} 52. Bg5
{[%clk 00:14:15]} {[%emt 00:01:13]} Rff7 {[%clk 00:03:28]} {[%emt 00:00:32]} 53.
Rc6 {[%clk 00:12:44]} {[%emt 00:02:02]} Nb6 {[%clk 00:03:21]} {[%emt 00:00:36]}
54. Ra1 {[%clk 00:12:40]} {[%emt 00:00:35]} Kg8 {[%clk 00:03:14]} {[%emt
00:00:36]} 55. Bh6 {[%clk 00:12:47]} {[%emt 00:00:23]} Kh7 {[%clk 00:03:28]}
{[%emt 00:00:15]} 56. Be3 {[%clk 00:12:45]} {[%emt 00:00:33]} Kg8 {[%clk
00:03:15]} {[%emt 00:00:42]} 57. Kh4 {[%clk 00:13:14]} {[%emt 00:00:02]} Kh7
{[%clk 00:03:24]} {[%emt 00:00:20]} 58. Kg5 {[%clk 00:13:24]} {[%emt 00:00:21]}
Rf8 {[%clk 00:02:33]} {[%emt 00:01:21]} 59. Kh4 {[%clk 00:10:15]} {[%emt
00:03:40]} Rc8 {[%clk 00:02:23]} {[%emt 00:00:39]} 60. Rxc8 {[%clk 00:07:52]}
{[%emt 00:02:54]} Nxc8 {[%clk 00:02:50]} {[%emt 00:00:02]} 61. Bg5 {[%clk
00:08:12]} {[%emt 00:00:11]} Nb6 {[%clk 00:02:54]} {[%emt 00:00:26]} 62. Bf6
{[%clk 00:08:02]} {[%emt 00:00:40]} Ne8 {[%clk 00:02:31]} {[%emt 00:00:52]} 63.
Bg5 {[%clk 00:07:25]} {[%emt 00:01:08]} Ng7 {[%clk 00:02:58]} {[%emt 00:00:02]}
64. Kg3 {[%clk 00:07:34]} {[%emt 00:00:21]} Nc8 {[%clk 00:03:05]} {[%emt
00:00:23]} 65. Kf3 {[%clk 00:07:35]} {[%emt 00:00:29]} Nb6 {[%clk 00:03:08]}
{[%emt 00:00:27]} 66. Ke3 {[%clk 00:08:05]} {[%emt 00:00:02]} Nc8 {[%clk
00:02:26]} {[%emt 00:01:10]} 67. Kd3 {[%clk 00:08:34]} {[%emt 00:00:02]} Nb6
{[%clk 00:02:29]} {[%emt 00:00:27]} 68. Be3 {[%clk 00:08:40]} {[%emt 00:00:24]}
Kg8 {[%clk 00:02:26]} {[%emt 00:00:32]} 69. Ra5 {[%clk 00:07:26]} {[%emt
00:01:45]} Rc7 {[%clk 00:02:34]} {[%emt 00:00:22]} 70. Bd1 {[%clk 00:07:24]}
{[%emt 00:00:33]} Kh7 {[%clk 00:02:45]} {[%emt 00:00:19]} 71. Bg5 {[%clk
00:06:58]} {[%emt 00:00:57]} Rd7 {[%clk 00:03:13]} {[%emt 00:00:01]} 72. Ra2
{[%clk 00:07:00]} {[%emt 00:00:29]} Kg8 {[%clk 00:03:26]} {[%emt 00:00:15]} 73.
Rg2 {[%clk 00:07:22]} {[%emt 00:00:09]} Rf7 {[%clk 00:03:26]} {[%emt 00:00:29]}
74. gxh5 {[%clk 00:07:21]} {[%emt 00:00:33]} gxh5 {[%clk 00:03:34]} {[%emt
00:00:21]} 75. Bd8 {[%clk 00:06:03]} {[%emt 00:01:49]} Kf8 {[%clk 00:03:36]}
{[%emt 00:00:26]} 76. Rg6 {[%clk 00:05:53]} {[%emt 00:00:41]} Rd7 {[%clk
00:03:42]} {[%emt 00:00:23]} 77. Bxb6 {[%clk 00:04:08]} {[%emt 00:02:16]} axb6
{[%clk 00:04:10]} {[%emt 00:00:02]} 78. Rh6 {[%clk 00:04:27]} {[%emt 00:00:12]}
Kg8 {[%clk 00:04:01]} {[%emt 00:00:38]} 79. Kc2 {[%clk 00:04:47]} {[%emt
00:00:11]} Kf7 {[%clk 00:02:17]} {[%emt 00:02:12]} 80. Kb3 {[%clk 00:05:02]}
{[%emt 00:00:16]} Ke7 {[%clk 00:02:31]} {[%emt 00:00:16]} 81. Bxh5 {[%clk
00:04:56]} {[%emt 00:00:36]} Nxh5 {[%clk 00:02:47]} {[%emt 00:00:13]} 82. Rxh5
{[%clk 00:05:25]} {[%emt 00:00:02]} Kf6 {[%clk 00:02:47]} {[%emt 00:00:29]} 83.
Ka4 {[%clk 00:04:57]} {[%emt 00:00:59]} Kg6 {[%clk 00:02:53]} {[%emt 00:00:23]}
84. Rf5 {[%clk 00:05:23]} {[%emt 00:00:05]} Rh7 {[%clk 00:03:07]} {[%emt
00:00:15]} 85. Rf3 {[%clk 00:05:01]} {[%emt 00:00:53]} Rh4 {[%clk 00:03:33]}
{[%emt 00:00:03]} 86. Re3 {[%clk 00:05:11]} {[%emt 00:00:22]} Kg5 {[%clk
00:03:39]} {[%emt 00:00:23]} 87. Rg3+ {[%clk 00:01:14]} {[%emt 00:04:28]} Kf4
{[%clk 00:04:06]} {[%emt 00:00:02]} 88. Rg6 {[%clk 00:01:42]} {[%emt 00:00:03]}
Kxe4 {[%clk 00:04:05]} {[%emt 00:00:30]} 89. Kb5 {[%clk 00:01:56]} {[%emt
00:00:17]} Kd3 {[%clk 00:03:45]} {[%emt 00:00:49]} 90. Rxd6 {[%clk 00:01:32]}
{[%emt 00:00:54]} e4 {[%clk 00:03:37]} {[%emt 00:00:36]} 91. Re6 {[%clk
00:01:52]} {[%emt 00:00:12]} e3 {[%clk 00:03:04]} {[%emt 00:01:02]} 92. d6
{[%clk 00:02:18]} {[%emt 00:00:04]} Rh7 {[%clk 00:03:07]} {[%emt 00:00:26]} 93.
Kxb6 {[%clk 00:01:55]} {[%emt 00:00:55]} e2 {[%clk 00:02:38]} {[%emt 00:00:58]}
94. Kxc5 {[%clk 00:01:36]} {[%emt 00:00:49]} 1-0

[Event "Campeonato de Aragón Individual Absoluto 2022"]
[Site "Zaragoza, Spain"]
[Date "2022.08.30"]
[Round "4.2"]
[White "Lorente Melcon, Maximo"]
[Black "Glavina, Pablo"]
[Result "0-1"]
[TimeControl "90 min + 30 sg"]
[WhiteElo "1851"]
[BlackElo "2394"]

1. e4 {[%clk 01:30:59]} Nf6 {[%clk 01:30:55]} {[%emt 00:00:05]} 2. e5 {[%clk
01:30:34]} {[%emt 00:00:55]} Nd5 {[%clk 01:31:21]} {[%emt 00:00:04]} 3. d4
{[%clk 01:30:56]} {[%emt 00:00:08]} d6 {[%clk 01:31:47]} {[%emt 00:00:04]} 4.
Nf3 {[%clk 01:30:43]} {[%emt 00:00:43]} Bg4 {[%clk 01:32:03]} {[%emt 00:00:13]}
5. Bc4 {[%clk 01:23:34]} {[%emt 00:07:40]} dxe5 {[%clk 01:32:01]} {[%emt
00:00:32]} 6. dxe5 {[%clk 01:23:53]} {[%emt 00:00:11]} e6 {[%emt 00:01:53]} 7.
O-O {[%clk 01:22:36]} {[%emt 00:00:02]} Nc6 {[%clk 01:31:22]} {[%emt 00:01:32]}
8. Re1 {[%clk 01:13:58]} {[%emt 00:09:08]} Nde7 {[%clk 01:25:16]} {[%emt
00:06:36]} 9. Qxd8+ {[%clk 01:07:03]} {[%emt 00:07:25]} Rxd8 {[%clk 01:25:39]}
{[%emt 00:00:07]} 10. Bb5 {[%clk 01:04:41]} {[%emt 00:02:52]} Bxf3 {[%clk
01:25:41]} {[%emt 00:00:28]} 11. gxf3 {[%clk 01:05:02]} {[%emt 00:00:09]} a6
{[%clk 01:26:06]} {[%emt 00:00:04]} 12. Bxc6+ {[%clk 01:04:02]} {[%emt
00:01:30]} Nxc6 {[%clk 01:26:30]} {[%emt 00:00:06]} 13. Bg5 {[%clk 00:48:21]}
{[%emt 00:16:11]} Be7 {[%clk 01:24:14]} {[%emt 00:02:46]} 14. Bxe7 {[%clk
00:47:05]} {[%emt 00:01:47]} Kxe7 {[%clk 01:24:42]} {[%emt 00:00:02]} 15. c3
{[%clk 00:44:35]} {[%emt 00:03:00]} g5 {[%clk 01:24:53]} {[%emt 00:00:18]} 16.
Na3 {[%clk 00:31:14]} {[%emt 00:13:52]} Rd5 {[%clk 01:25:14]} {[%emt 00:00:08]}
17. Nc4 {[%clk 00:30:21]} {[%emt 00:01:24]} b5 {[%clk 01:24:58]} {[%emt
00:00:46]} 18. Ne3 {[%clk 00:30:36]} {[%emt 00:00:15]} Rd2 {[%clk 01:25:05]}
{[%emt 00:00:23]} 19. b3 {[%clk 00:23:00]} {[%emt 00:08:06]} Nxe5 {[%clk
01:25:21]} {[%emt 00:00:13]} 20. Kg2 {[%clk 00:23:18]} {[%emt 00:00:13]} Nd3
{[%clk 01:24:26]} {[%emt 00:01:25]} 21. Red1 {[%clk 00:23:09]} {[%emt
00:00:38]} Rd8 {[%clk 01:22:42]} {[%emt 00:02:15]} 22. Rxd2 {[%clk 00:21:10]}
{[%emt 00:02:30]} Nf4+ {[%clk 01:23:07]} {[%emt 00:00:05]} 23. Kf1 {[%clk
00:18:00]} {[%emt 00:03:39]} Rxd2 {[%clk 01:23:32]} {[%emt 00:00:06]} 24. a4
{[%clk 00:13:34]} {[%emt 00:04:56]} Rb2 {[%clk 01:22:24]} {[%emt 00:01:37]} 25.
axb5 {[%clk 00:11:12]} {[%emt 00:02:53]} axb5 {[%clk 01:22:44]} {[%emt
00:00:10]} 26. Ra7 {[%clk 00:09:59]} {[%emt 00:01:42]} 0-1

[Event "Campeonato de Aragón Individual Absoluto 2022"]
[Site "Zaragoza, Spain"]
[Date "2022.08.30"]
[Round "4.3"]
[White "Quintin Navarro, Alberto"]
[Black "Miranda Herrera, Miguel"]
[Result "1-0"]
[TimeControl "90 min + 30 sg"]
[WhiteElo "2372"]
[BlackElo "1974"]

1. c4 {[%clk 01:30:56]} {[%emt 00:00:03]} e6 {[%clk 01:30:48]} {[%emt
00:00:12]} 2. Nf3 {[%clk 01:30:57]} {[%emt 00:00:29]} d5 {[%clk 01:31:12]}
{[%emt 00:00:06]} 3. d4 {[%clk 01:31:06]} {[%emt 00:00:21]} a6 {[%clk
01:31:32]} {[%emt 00:00:10]} 4. Bg5 {[%clk 01:31:25]} {[%emt 00:00:12]} Be7
{[%clk 01:31:54]} {[%emt 00:00:07]} 5. Bxe7 {[%clk 01:31:50]} {[%emt 00:00:05]}
Qxe7 {[%clk 01:32:20]} {[%emt 00:00:05]} 6. Nbd2 {[%clk 01:32:12]} {[%emt
00:00:07]} Nf6 {[%clk 01:32:30]} {[%emt 00:00:20]} 7. g3 {[%clk 01:32:38]}
{[%emt 00:00:05]} Nbd7 {[%clk 01:21:49]} {[%emt 00:11:11]} 8. Bg2 {[%clk
01:31:58]} {[%emt 00:01:10]} c5 {[%clk 01:22:12]} {[%emt 00:00:07]} 9. O-O
{[%clk 01:31:51]} {[%emt 00:00:37]} O-O {[%clk 01:22:01]} {[%emt 00:00:40]} 10.
cxd5 {[%clk 01:29:39]} {[%emt 00:02:43]} exd5 {[%clk 01:22:20]} {[%emt
00:00:11]} 11. dxc5 {[%clk 01:26:25]} {[%emt 00:03:44]} Nxc5 {[%clk 01:22:43]}
{[%emt 00:00:07]} 12. Rc1 {[%clk 01:26:14]} {[%emt 00:00:40]} Bg4 {[%clk
01:18:03]} {[%emt 00:05:10]} 13. h3 {[%clk 01:24:27]} {[%emt 00:02:17]} Bh5
{[%clk 01:17:30]} {[%emt 00:01:03]} 14. Nd4 {[%clk 01:24:19]} {[%emt 00:00:38]}
Nce4 {[%clk 01:07:39]} {[%emt 00:10:21]} 15. Nxe4 {[%clk 01:17:57]} {[%emt
00:06:52]} dxe4 {[%clk 01:05:41]} {[%emt 00:02:28]} 16. Qb3 {[%clk 01:18:03]}
{[%emt 00:00:25]} Rfd8 {[%clk 00:55:26]} {[%emt 00:10:45]} 17. e3 {[%clk
01:17:24]} {[%emt 00:00:39]} Rac8 {[%clk 00:54:39]} {[%emt 00:01:16]} 18. Rc2
{[%clk 01:13:39]} {[%emt 00:04:45]} Rc7 {[%clk 00:48:07]} {[%emt 00:07:02]} 19.
Rfc1 {[%clk 01:08:50]} {[%emt 00:05:18]} Rdc8 {[%clk 00:48:30]} {[%emt
00:00:07]} 20. Nf5 {[%clk 00:52:37]} {[%emt 00:16:44]} Qd7 {[%clk 00:45:56]}
{[%emt 00:03:03]} 21. Rxc7 {[%clk 00:52:30]} {[%emt 00:00:37]} Rxc7 {[%clk
00:46:18]} {[%emt 00:00:08]} 22. Rxc7 {[%clk 00:52:47]} {[%emt 00:00:13]} Qxc7
{[%clk 00:46:43]} {[%emt 00:00:05]} 23. Qb4 {[%clk 00:52:03]} {[%emt 00:01:14]}
Bf3 {[%clk 00:36:26]} {[%emt 00:10:47]} 24. Ne7+ {[%clk 00:49:53]} {[%emt
00:02:41]} Kh8 {[%clk 00:36:37]} {[%emt 00:00:19]} 25. Nd5 {[%clk 00:49:37]}
{[%emt 00:00:46]} Qd8 {[%clk 00:35:44]} {[%emt 00:01:22]} 26. Nxf6 {[%clk
00:48:35]} {[%emt 00:01:33]} gxf6 {[%clk 00:36:07]} {[%emt 00:00:07]} 27. Bxf3
{[%clk 00:48:45]} {[%emt 00:00:20]} exf3 {[%clk 00:36:30]} {[%emt 00:00:07]} 28.
Qd4 {[%clk 00:48:52]} {[%emt 00:00:24]} Qe7 {[%clk 00:34:30]} {[%emt 00:02:29]}
29. Qf4 {[%clk 00:48:03]} {[%emt 00:01:19]} Qe5 {[%clk 00:33:18]} {[%emt
00:01:42]} 30. Qxe5 {[%clk 00:47:47]} {[%emt 00:00:47]} fxe5 {[%clk 00:33:42]}
{[%emt 00:00:06]} 31. g4 {[%clk 00:48:08]} {[%emt 00:00:08]} h5 {[%clk
00:28:42]} {[%emt 00:05:29]} 32. gxh5 {[%clk 00:48:25]} {[%emt 00:00:13]} Kg7
{[%clk 00:28:19]} {[%emt 00:00:53]} 33. Kh2 {[%clk 00:48:35]} {[%emt 00:00:20]}
Kh6 {[%clk 00:28:43]} {[%emt 00:00:06]} 34. Kg3 {[%clk 00:49:01]} {[%emt
00:00:04]} Kxh5 {[%clk 00:29:01]} {[%emt 00:00:12]} 35. Kxf3 {[%clk 00:49:23]}
{[%emt 00:00:08]} Kh4 {[%clk 00:29:14]} {[%emt 00:00:16]} 36. Ke4 {[%clk
00:49:39]} {[%emt 00:00:14]} f6 {[%clk 00:29:27]} {[%emt 00:00:17]} 37. Kf5
{[%clk 00:50:02]} {[%emt 00:00:07]} Kxh3 {[%clk 00:29:46]} {[%emt 00:00:12]} 38.
Kxf6 {[%clk 00:50:27]} {[%emt 00:00:05]} 1-0

[Event "Campeonato de Aragón Individual Absoluto 2022"]
[Site "Zaragoza, Spain"]
[Date "2022.08.30"]
[Round "4.4"]
[White "Ereza Vizcarra, Fernando"]
[Black "Olivan Lopez, Dario"]
[Result "1-0"]
[TimeControl "90 min + 30 sg"]
[WhiteElo "2132"]
[BlackElo "1768"]

1. d4 {[%clk 01:30:57]} {[%emt 00:00:02]} Nf6 {[%clk 01:27:25]} {[%emt
00:03:35]} 2. Nf3 {[%clk 01:31:19]} {[%emt 00:00:08]} e6 {[%clk 01:27:43]}
{[%emt 00:00:12]} 3. g3 {[%clk 01:31:46]} {[%emt 00:00:03]} b6 {[%clk
01:27:19]} {[%emt 00:00:55]} 4. Bg2 {[%clk 01:32:13]} {[%emt 00:00:03]} Bb7
{[%clk 01:27:43]} {[%emt 00:00:06]} 5. O-O {[%clk 01:32:39]} {[%emt 00:00:04]}
d5 {[%clk 01:25:09]} {[%emt 00:03:04]} 6. c4 {[%clk 01:32:34]} {[%emt
00:00:35]} Nbd7 {[%clk 01:24:17]} {[%emt 00:01:22]} 7. Nc3 {[%clk 01:32:07]}
{[%emt 00:00:57]} Bb4 {[%clk 01:23:05]} {[%emt 00:01:42]} 8. Bg5 {[%clk
01:26:59]} {[%emt 00:05:38]} O-O {[%clk 01:18:33]} {[%emt 00:05:02]} 9. Ne5
{[%clk 01:26:05]} {[%emt 00:01:23]} Be7 {[%clk 01:14:41]} {[%emt 00:04:22]} 10.
Rc1 {[%clk 01:21:58]} {[%emt 00:04:38]} Nxe5 {[%clk 01:14:09]} {[%emt
00:01:02]} 11. dxe5 {[%clk 01:22:24]} {[%emt 00:00:04]} Nd7 {[%clk 01:11:01]}
{[%emt 00:03:38]} 12. Bxe7 {[%clk 01:22:37]} {[%emt 00:00:17]} Qxe7 {[%clk
01:11:30]} {[%emt 00:00:02]} 13. cxd5 {[%clk 01:22:47]} {[%emt 00:00:19]} exd5
{[%clk 01:10:09]} {[%emt 00:01:51]} 14. Nxd5 {[%clk 01:23:14]} {[%emt
00:00:04]} Bxd5 {[%clk 01:10:12]} {[%emt 00:00:28]} 15. Qxd5 {[%clk 01:22:30]}
{[%emt 00:01:13]} Nxe5 {[%clk 01:10:04]} {[%emt 00:00:38]} 16. Qb7 {[%clk
01:18:56]} {[%emt 00:04:03]} Rac8 {[%clk 01:02:06]} {[%emt 00:08:28]} 17. Qxa7
{[%clk 01:18:45]} {[%emt 00:00:40]} Qb4 {[%clk 00:59:43]} {[%emt 00:02:53]} 18.
b3 {[%clk 01:14:35]} {[%emt 00:04:40]} c5 {[%clk 00:59:19]} {[%emt 00:00:55]}
19. Rfd1 {[%clk 01:14:32]} {[%emt 00:00:32]} Rfe8 {[%clk 00:55:25]} {[%emt
00:04:24]} 20. Bd5 {[%clk 01:10:43]} {[%emt 00:04:19]} Rf8 {[%clk 00:54:52]}
{[%emt 00:01:04]} 21. h3 {[%clk 01:08:24]} {[%emt 00:02:48]} b5 {[%clk
00:54:24]} {[%emt 00:00:58]} 22. a3 {[%clk 01:08:37]} {[%emt 00:00:18]} Nc6
{[%clk 00:53:53]} {[%emt 00:01:01]} 23. Bxc6 {[%clk 01:08:34]} {[%emt
00:00:33]} Qxb3 {[%clk 00:54:10]} {[%emt 00:00:13]} 24. Qxc5 {[%clk 01:08:27]}
{[%emt 00:00:37]} Rc7 {[%clk 00:53:48]} {[%emt 00:00:52]} 25. Qxb5 {[%clk
01:08:33]} {[%emt 00:00:24]} Qxa3 {[%clk 00:54:09]} {[%emt 00:00:09]} 26. Ra1
{[%clk 01:07:34]} {[%emt 00:01:28]} Qc3 {[%clk 00:54:21]} {[%emt 00:00:18]} 27.
Bf3 {[%clk 01:07:54]} {[%emt 00:00:10]} Rcc8 {[%clk 00:54:18]} {[%emt
00:00:34]} 28. Ra7 {[%clk 01:07:16]} {[%emt 00:01:08]} Rc5 {[%clk 00:54:39]}
{[%emt 00:00:08]} 29. Qd3 {[%clk 01:07:28]} {[%emt 00:00:18]} Qf6 {[%clk
00:54:53]} {[%emt 00:00:16]} 30. Rd7 {[%clk 01:07:53]} {[%emt 00:00:06]} Rc3
{[%clk 00:55:03]} {[%emt 00:00:20]} 31. Qd4 {[%clk 01:08:05]} {[%emt 00:00:17]}
1-0

[Event "Campeonato de Aragón Individual Absoluto 2022"]
[Site "Zaragoza, Spain"]
[Date "2022.08.30"]
[Round "4.5"]
[White "Tiestos Sanchez, Javier"]
[Black "Vela Frago, Alberto"]
[Result "0-1"]
[TimeControl "90 min + 30 sg"]
[WhiteElo "1597"]
[BlackElo "2232"]

1. d4 {[%clk 01:30:57]} {[%emt 00:00:01]} Nf6 {[%clk 01:27:17]} {[%emt
00:03:44]} 2. Nf3 {[%clk 01:31:10]} {[%emt 00:00:17]} e6 {[%clk 01:27:27]}
{[%emt 00:00:20]} 3. c4 {[%clk 01:31:06]} {[%emt 00:00:34]} d5 {[%clk
01:26:38]} {[%emt 00:01:19]} 4. Nc3 {[%clk 01:29:39]} {[%emt 00:01:57]} Be7
{[%clk 01:26:53]} {[%emt 00:00:16]} 5. Bg5 {[%clk 01:27:48]} {[%emt 00:02:20]}
Nbd7 {[%clk 01:24:16]} {[%emt 00:03:06]} 6. e3 {[%clk 01:25:33]} {[%emt
00:02:46]} O-O {[%clk 01:22:50]} {[%emt 00:01:56]} 7. cxd5 {[%clk 01:24:54]}
{[%emt 00:01:09]} exd5 {[%clk 01:23:16]} {[%emt 00:00:05]} 8. Bd3 {[%clk
01:23:49]} {[%emt 00:01:35]} h6 {[%clk 01:22:41]} {[%emt 00:01:05]} 9. Bh4
{[%clk 01:24:06]} {[%emt 00:00:13]} Re8 {[%clk 01:20:50]} {[%emt 00:02:21]} 10.
h3 {[%clk 01:18:10]} {[%emt 00:06:26]} a6 {[%clk 01:19:13]} {[%emt 00:02:07]}
11. O-O {[%clk 01:17:51]} {[%emt 00:00:48]} b6 {[%clk 01:19:19]} {[%emt
00:00:25]} 12. Rc1 {[%clk 01:13:59]} {[%emt 00:04:22]} Bb7 {[%clk 01:19:22]}
{[%emt 00:00:27]} 13. Qc2 {[%clk 01:08:33]} {[%emt 00:05:55]} Nh5 {[%clk
01:05:27]} {[%emt 00:14:26]} 14. Bxe7 {[%clk 01:08:13]} {[%emt 00:00:50]} Qxe7
{[%clk 01:05:56]} {[%emt 00:00:02]} 15. Ne2 {[%clk 01:00:13]} {[%emt 00:08:30]}
Rac8 {[%clk 01:06:21]} {[%emt 00:00:05]} 16. Qa4 {[%clk 01:00:22]} {[%emt
00:00:22]} Nhf6 {[%clk 01:02:34]} {[%emt 00:04:18]} 17. Rc2 {[%clk 00:52:31]}
{[%emt 00:08:21]} c5 {[%clk 01:01:01]} {[%emt 00:02:03]} 18. dxc5 {[%clk
00:51:58]} {[%emt 00:01:03]} bxc5 {[%clk 01:00:50]} {[%emt 00:00:41]} 19. Nd2
{[%clk 00:45:48]} {[%emt 00:06:40]} g6 {[%clk 00:59:14]} {[%emt 00:02:07]} 20.
Rc3 {[%clk 00:43:56]} {[%emt 00:02:22]} d4 {[%clk 00:47:31]} {[%emt 00:12:13]}
21. exd4 {[%clk 00:43:32]} {[%emt 00:00:54]} Nd5 {[%clk 00:47:36]} {[%emt
00:00:25]} 22. Rb3 {[%clk 00:37:35]} {[%emt 00:06:26]} Nb4 {[%clk 00:46:30]}
{[%emt 00:01:36]} 23. Ng3 {[%clk 00:33:34]} {[%emt 00:04:31]} Bd5 {[%clk
00:40:32]} {[%emt 00:06:28]} 24. Rc3 {[%clk 00:27:51]} {[%emt 00:06:14]} Nxa2
{[%clk 00:38:32]} {[%emt 00:02:30]} 25. Rc2 {[%clk 00:27:18]} {[%emt 00:01:03]}
Nb4 {[%clk 00:37:40]} {[%emt 00:01:22]} 26. Rc3 {[%clk 00:27:31]} {[%emt
00:00:17]} Bc6 {[%clk 00:36:00]} {[%emt 00:02:10]} 27. Qa3 {[%clk 00:25:18]}
{[%emt 00:02:44]} cxd4 {[%clk 00:36:10]} {[%emt 00:00:20]} 28. Rcc1 {[%clk
00:24:34]} {[%emt 00:01:13]} Nxd3 {[%clk 00:36:30]} {[%emt 00:00:10]} 29. Qxd3
{[%clk 00:20:50]} {[%emt 00:04:14]} Bb5 {[%clk 00:36:59]} 30. Nc4 {[%clk
00:21:11]} {[%emt 00:00:10]} Bxc4 {[%clk 00:37:24]} {[%emt 00:00:05]} 31. Rxc4
{[%clk 00:21:27]} {[%emt 00:00:15]} Ne5 {[%clk 00:37:53]} {[%emt 00:00:01]} 32.
Re1 {[%clk 00:17:23]} {[%emt 00:04:34]} Rxc4 {[%clk 00:38:21]} {[%emt
00:00:02]} 0-1